bitfinex/quotes_SOLUSD_20250724
["timestamp","ask_amount","ask_price","bid_price","bid_amount"]
[1753341110262,12.68107798,182.62,182.59,0.06]
[1753341110567,17.44722934,182.61,182.6,47.16]
[1753341110765,18.15722934,182.61,182.59,0.06]
[1753341110944,18.15722934,182.61,182.6,47.1]
[1753341111652,18.15722934,182.61,182.59,0.06]
[1753341111860,12.68107798,182.6,182.57,47.08]
[1753341112070,11.97107798,182.58,182.57,47.08]
[1753341112573,18.15812913,182.58,182.57,47.08]
[1753341112954,18.15812913,182.58,182.5,1.0]
[1753341113166,11.97107798,182.53,182.51,47.02]
[1753341113473,5.47705115,182.58,182.5,1.0]
[1753341113474,0.71,182.56,182.5,1.0]
[1753341113669,0.71,182.56,182.52,47.04]
[1753341113974,11.97107798,182.56,182.52,47.04]
[1753341114167,11.97107798,182.58,182.52,47.04]
[1753341114369,11.97107798,182.58,182.52,59.01107798]
[1753341114569,11.97107798,182.58,182.53,11.97107798]
[1753341114754,11.97107798,182.56,182.52,47.04]
[1753341114954,17.44824168,182.58,182.52,47.04]
[1753341115174,17.44824168,182.58,182.52,59.01107798]
[1753341115370,17.44786916,182.59,182.53,11.97107798]
[1753341115580,17.44786916,182.59,182.52,47.71]
[1753341115760,17.44786916,182.59,182.53,11.97107798]
[1753341116573,5.47679118,182.59,182.54,11.97107798]
[1753341116759,5.47679118,182.59,182.52,53.06662448]
[1753341116760,5.47679118,182.59,182.52,53.06665028]
[1753341116958,5.47679118,182.59,182.54,12.64107798]
[1753341117180,11.97107798,182.63,182.58,11.97107798]
[1753341117360,11.97107798,182.62,182.59,46.78]
[1753341117669,11.97107798,182.63,182.6,46.8]
[1753341118175,17.44662964,182.63,182.6,46.8]
[1753341118554,12.68107798,182.62,182.61,46.74]
[1753341118750,12.68107798,182.62,182.52,5.47857948]
[1753341118966,11.97107798,182.6,182.55,11.97107798]
[1753341119147,12.68107798,182.6,182.55,11.97107798]
[1753341119349,11.97107798,182.61,182.53,47.24785514]
[1753341119570,6.18555166,182.63,182.56,11.97107798]
[1753341119752,11.97107798,182.62,182.56,11.97107798]
[1753341119948,11.97107798,182.6,182.55,11.97107798]
[1753341120160,5.47660273,182.6,182.53,53.39634107]
[1753341120352,17.44692947,182.62,182.57,11.97107798]
[1753341120551,6.97919962,182.64,182.58,59.30107798]
[1753341120754,6.97919962,182.64,182.6,11.97107798]
[1753341120955,18.9502776,182.64,182.61,46.58]
[1753341121183,19.6602776,182.64,182.61,46.58]
[1753341121476,6.5263,182.65,182.61,58.55107798]
[1753341121787,6.18539881,182.64,182.62,46.56]
[1753341121976,11.97107798,182.63,182.61,46.56]
[1753341122185,17.44692947,182.62,182.61,46.56]
[1753341122479,17.44692947,182.62,182.54,6.02585747]
[1753341122677,17.44692947,182.62,182.56,11.97107798]
[1753341122984,11.97107798,182.63,182.58,11.97107798]
[1753341123153,11.97107798,182.63,182.55,0.67]
[1753341123356,5.47525186,182.64,182.55,0.67]
[1753341123575,11.97107798,182.61,182.56,58.41107798]
[1753341123874,11.97107798,182.6,182.52,6.08670943]
[1753341124077,11.97107798,182.59,182.53,58.39107798]
[1753341124378,5.47685945,182.59,182.54,11.97107798]
[1753341124579,5.47685945,182.59,182.55,11.97107798]
[1753341124787,6.5263,182.65,182.58,11.97107798]
[1753341124956,6.5263,182.65,182.63,11.97107798]
[1753341125153,5.47428079,182.68,182.64,58.37107798]
[1753341125353,11.97107798,182.65,182.54,0.54782513]
[1753341125558,11.97107798,182.61,182.55,58.35107798]
[1753341125954,11.97107798,182.6,182.54,11.97107798]
[1753341126158,11.97107798,182.6,182.55,46.38]
[1753341126358,17.44727311,182.61,182.55,58.35107798]
[1753341126583,17.44727311,182.61,182.56,11.97107798]
[1753341126584,5.47619513,182.61,182.56,11.97107798]
[1753341126786,5.47591408,182.62,182.56,11.97107798]
[1753341126955,17.44666372,182.63,182.57,11.97107798]
[1753341127159,17.44666372,182.63,182.55,52.52784871]
[1753341127160,5.47558574,182.63,182.56,7.92273512]
[1753341127360,7.92273512,182.6,182.54,7.92273512]
[1753341127670,7.92273512,182.58,182.52,0.06]
[1753341127985,7.92273512,182.58,182.53,46.26]
[1753341128364,13.39985816,182.58,182.52,0.06]
[1753341128576,13.39985816,182.58,182.53,46.22]
[1753341128979,14.10985816,182.58,182.53,46.22]
[1753341129181,5.47712304,182.58,182.54,46.2]
[1753341129367,7.92273512,182.58,182.54,46.2]
[1753341129562,7.92273512,182.58,182.55,46.16]
[1753341130167,0.71,182.61,182.55,46.16]
[1753341130168,5.47645125,182.6,182.55,46.16]
[1753341130367,0.71,182.59,182.56,46.12]
[1753341130566,8.63273512,182.59,182.56,46.12]
[1753341131062,7.92273512,182.58,182.52,5.53883367]
[1753341131262,7.92273512,182.58,182.53,46.04]
[1753341131822,7.92273512,182.58,182.54,46.04]
[1753341132164,7.92273512,182.57,182.54,46.04]
[1753341132477,7.92273512,182.58,182.54,46.04]
[1753341132790,7.92273512,182.59,182.54,46.04]
[1753341132996,7.92273512,182.58,182.55,45.94]
[1753341133171,7.92273512,182.58,182.56,45.94]
[1753341133368,5.47615136,182.61,182.56,45.94]
[1753341133687,13.39864397,182.62,182.57,7.92273512]
[1753341133985,4.37392088,182.67,182.56,46.61]
[1753341133986,13.3967881,182.68,182.61,7.92273512]
[1753341134286,13.3967881,182.68,182.63,7.92273512]
[1753341134584,7.92273512,182.64,182.63,45.9]
[1753341134792,0.7,182.67,182.63,45.9]
[1753341134793,7.92273512,182.66,182.63,45.9]
[1753341134976,7.92273512,182.67,182.62,7.92273512]
[1753341135291,8.62273512,182.67,182.63,45.88]
[1753341135710,5.47405298,182.68,182.63,53.80273512]
[1753341135905,5.47382605,182.69,182.64,7.92273512]
[1753341136081,10.20493512,182.7,182.66,7.92273512]
[1753341136082,1.5822,182.7,182.66,7.92273512]
[1753341136399,5.47405298,182.68,182.63,7.92273512]
[1753341136590,1.5822,182.7,182.64,53.72273512]
[1753341136796,7.92273512,182.69,182.63,7.92273512]
[1753341136991,7.92273512,182.65,182.64,45.78]
[1753341137299,7.92273512,182.66,182.64,45.78]
[1753341137480,7.92273512,182.65,182.64,45.78]
[1753341137681,0.7,182.68,182.64,45.78]
[1753341138077,20.73935527,182.7,182.64,45.78]
[1753341138279,7.92273512,182.67,182.64,45.78]
[1753341138993,7.92273512,182.68,182.64,45.78]
[1753341139192,7.92273512,182.67,182.64,45.78]
[1753341139397,7.92273512,182.67,182.65,0.67]
[1753341139600,5.4735209,182.7,182.59,13.69167343]
[1753341139810,5.4735209,182.7,182.63,7.92273512]
[1753341140018,7.92273512,182.68,182.62,0.67]
[1753341140302,5.47485143,182.66,182.63,45.64]
[1753341140618,7.92273512,182.65,182.63,45.64]
[1753341140781,7.92273512,182.69,182.64,0.67]
[1753341141101,5.47315417,182.71,182.65,8.59273512]
[1753341141308,7.92273512,182.7,182.66,0.67]
[1753341141523,5.47315417,182.71,182.67,0.67]
[1753341141524,7.92273512,182.71,182.67,0.67]
[1753341141679,5.5016948,182.76,182.7,7.92273512]
[1753341141875,0.03,182.76,182.71,54.17273512]
[1753341142079,0.03,182.76,182.72,1.21728546]
[1753341142277,7.92273512,182.75,182.69,5.47363754]
[1753341142502,7.92273512,182.75,182.7,45.56]
[1753341142705,7.92273512,182.71,182.69,45.54]
[1753341143005,8.62273512,182.7,182.66,45.56]
[1753341143308,7.92273512,182.69,182.66,45.56]
[1753341143602,0.7,182.7,182.66,45.56]
[1753341143603,7.92273512,182.68,182.66,45.56]
[1753341143801,13.68147656,182.73,182.6,0.54764512]
[1753341144109,7.92273512,182.71,182.65,7.92273512]
[1753341144418,7.92273512,182.67,182.66,45.5]
[1753341144784,0.7,182.71,182.66,45.5]
[1753341144979,19.15499124,182.72,182.66,45.5]
[1753341145208,7.92273512,182.67,182.66,45.5]
[1753341145416,27.38952379,182.76,182.66,45.5]
[1753341145417,0.7,182.73,182.66,45.5]
[1753341145622,7.92273512,182.73,182.66,0.67]
[1753341145922,7.92273512,182.72,182.67,53.40273512]
[1753341146211,7.92273512,182.68,182.6,0.67]
[1753341146525,7.92273512,182.63,182.58,7.92273512]
[1753341146691,7.92273512,182.63,182.61,45.62]
[1753341147016,7.92273512,182.67,182.62,0.67]
[1753341147518,5.47447823,182.67,182.62,0.67]
[1753341147917,7.92273512,182.65,182.61,45.62]
[1753341148097,7.92273512,182.63,182.56,5.47763043]
[1753341148295,7.92273512,182.63,182.57,53.50273512]
[1753341148520,7.92273512,182.63,182.55,0.73]
[1753341148688,7.92273512,182.59,182.55,0.06]
[1753341148894,7.92273512,182.58,182.55,45.56]
[1753341149211,7.92273512,182.59,182.55,45.56]
[1753341149393,13.39978627,182.58,182.55,45.56]
[1753341149714,13.39978627,182.58,182.55,0.06]
[1753341149918,13.39978627,182.58,182.56,45.54]
[1753341150088,13.39978627,182.58,182.55,0.06]
[1753341150491,5.47705115,182.58,182.56,45.48]
[1753341150701,5.47705115,182.58,182.55,0.06]
[1753341150908,7.92273512,182.61,182.56,45.46]
[1753341151214,0.7,182.6,182.55,0.06]
[1753341151398,13.39925859,182.6,182.55,0.06]
[1753341151604,5.47585149,182.62,182.57,7.92273512]
[1753341151914,5.47585149,182.62,182.56,0.67]
[1753341151915,14.09858661,182.62,182.56,7.92273512]
[1753341152219,13.39828738,182.63,182.57,7.92273512]
[1753341152435,9.45433512,182.65,182.58,0.54770511]
[1753341152603,9.45433512,182.65,182.59,7.92273512]
[1753341152808,7.00661763,182.65,182.6,45.52]
[1753341153126,7.92273512,182.62,182.61,45.5]
[1753341153428,8.62273512,182.62,182.55,0.06]
[1753341153624,7.92273512,182.56,182.55,0.06]
[1753341153999,0.7,182.59,182.55,0.06]
[1753341154196,0.7,182.58,182.55,0.06]
[1753341154408,7.92273512,182.56,182.55,0.06]
[1753341154894,0.7,182.56,182.55,0.06]
[1753341155097,8.62273512,182.56,182.55,0.06]
[1753341155295,12.66440965,182.56,182.55,0.06]
[1753341155515,18.14206083,182.56,182.55,0.06]
[1753341156920,6.17765118,182.56,182.55,0.06]
[1753341157125,5.47735913,182.57,182.55,0.06]
[1753341157431,5.47675119,182.59,182.55,0.06]
[1753341157598,0.7,182.58,182.55,0.06]
[1753341157932,11.96440965,182.56,182.55,0.06]
[1753341158936,12.66440965,182.56,182.55,0.06]
[1753341159495,18.14206083,182.56,182.55,0.06]
[1753341160024,6.17765118,182.56,182.55,0.06]
[1753341160220,5.47765118,182.56,182.55,0.06]
[1753341160521,17.44206083,182.56,182.55,0.06]
[1753341160923,18.14206083,182.56,182.55,0.06]
[1753341162824,17.44180161,182.57,182.55,0.06]
[1753341163122,11.96440965,182.56,182.55,0.06]
[1753341163419,12.67440965,182.56,182.55,0.06]
[1753341163619,18.15206083,182.56,182.55,0.06]
[1753341167221,5.47765118,182.56,182.55,0.06]
[1753341167422,17.44206083,182.56,182.55,0.06]
[1753341167730,11.96440965,182.58,182.55,0.06]
[1753341167924,0.03,182.59,182.56,11.96440965]
[1753341168413,0.03,182.59,182.55,45.54]
[1753341168611,11.96440965,182.58,182.55,45.54]
[1753341168918,0.03,182.59,182.57,11.96440965]
[1753341169527,0.03,182.59,182.55,57.50440965]
[1753341169906,0.03,182.59,182.56,11.96440965]
[1753341171314,0.03,182.59,182.58,11.96440965]
[1753341171731,0.03,182.59,182.56,45.46]
[1753341172106,0.03,182.59,182.57,11.96440965]
[1753341172304,0.03,182.59,182.58,11.96440965]
[1753341172713,0.03,182.59,182.58,12.65440965]
[1753341172916,0.03,182.59,182.56,46.00776511]
[1753341173109,0.03,182.59,182.57,45.46]
[1753341173309,0.03,182.59,182.58,11.96440965]
[1753341173533,0.03,182.59,182.58,13.20211476]
[1753341174916,0.03,182.59,182.58,14.10211476]
[1753341175123,0.03,182.63,182.58,10.05414816]
[1753341175449,0.03,182.63,182.62,13.39229454]
[1753341176039,0.03,182.63,182.62,14.08229454]
[1753341176910,0.03,182.63,182.62,31.41456365]
[1753341177433,1.5902,182.72,182.64,5.47525186]
[1753341177641,7.91644305,182.75,182.69,7.91644305]
[1753341177940,7.91644305,182.74,182.7,45.44]
[1753341178143,7.91644305,182.74,182.68,7.91644305]
[1753341178437,0.71,182.76,182.63,16.78468397]
[1753341178438,7.91644305,182.69,182.67,45.44]
[1753341178934,8.62644305,182.69,182.67,45.44]
[1753341179440,7.91644305,182.7,182.68,45.44]
[1753341179640,7.91644305,182.7,182.64,7.91644305]
[1753341179934,7.91644305,182.7,182.61,0.69]
[1753341179935,7.91644305,182.7,182.65,45.44]
[1753341180436,7.91644305,182.72,182.66,8.60644305]
[1753341180734,0.71,182.74,182.68,7.91644305]
[1753341180735,8.62644305,182.74,182.68,7.91644305]
[1753341180912,5.47172248,182.76,182.68,8.60644305]
[1753341181110,8.62644305,182.77,182.71,7.91644305]
[1753341181334,7.91644305,182.75,182.69,7.91644305]
[1753341181509,6.6575,182.69,182.63,0.54755516]
[1753341181713,7.91644305,182.64,182.58,39.46]
[1753341181915,0.71,182.65,182.62,45.42]
[1753341182135,7.91644305,182.66,182.62,45.42]
[1753341182439,7.91644305,182.65,182.62,45.42]
[1753341182639,0.71,182.66,182.62,45.42]
[1753341182832,1.6345,182.68,182.62,45.42]
[1753341183037,7.91644305,182.66,182.62,45.42]
[1753341183543,7.91644305,182.63,182.58,39.46]
[1753341183727,7.91644305,182.62,182.59,45.42]
[1753341184039,7.91644305,182.6,182.58,39.46]
[1753341184244,7.91644305,182.59,182.58,39.46]
[1753341184543,19.1613404,182.66,182.58,7.91644305]
[1753341184544,8.62644305,182.64,182.58,7.91644305]
[1753341184745,5.47470951,182.66,182.59,53.33644305]
[1753341185041,7.91644305,182.65,182.59,53.33644305]
[1753341185541,8.62644305,182.67,182.6,0.54764512]
[1753341185838,7.91644305,182.65,182.58,6.16702843]
[1753341186044,7.91644305,182.64,182.61,45.42]
[1753341186335,8.62644305,182.64,182.62,45.4]
[1753341187128,8.62644305,182.64,182.58,13.45347148]
[1753341187332,14.10177029,182.64,182.59,45.4]
[1753341187539,8.62644305,182.63,182.6,45.4]
[1753341187920,0.71,182.62,182.6,45.4]
[1753341188126,8.62644305,182.61,182.58,0.06]
[1753341188328,7.91644305,182.59,182.58,0.06]
[1753341188523,0.71,182.6,182.58,0.06]
[1753341188747,7.91644305,182.59,182.58,0.06]
[1753341189534,7.91644305,182.63,182.58,53.37644305]
[1753341189844,7.91644305,182.64,182.58,53.37644305]
[1753341190029,7.91644305,182.64,182.59,7.91644305]
[1753341190441,7.91644305,182.6,182.58,0.06]
[1753341190750,7.91644305,182.59,182.58,0.06]
[1753341191127,8.62644305,182.59,182.58,0.06]
[1753341191843,7.91644305,182.62,182.58,45.46]
[1753341192143,8.62644305,182.61,182.58,45.46]
[1753341192756,0.71,182.61,182.58,45.46]
[1753341193131,0.68,182.6,182.58,0.06]
[1753341193331,13.39319424,182.59,182.58,0.06]
[1753341193933,14.07319424,182.59,182.58,0.06]
[1753341194434,7.91644305,182.59,182.58,0.06]
[1753341194750,8.59644305,182.59,182.58,0.06]
[1753341195547,7.91644305,182.62,182.58,0.06]
[1753341195725,7.91644305,182.61,182.58,0.06]
[1753341195925,7.91644305,182.6,182.58,0.06]
[1753341196122,7.91644305,182.6,182.59,45.4]
[1753341196351,8.59644305,182.6,182.59,45.4]
[1753341196647,0.68,182.6,182.59,45.4]
[1753341196830,7.91644305,182.61,182.59,45.4]
[1753341197232,7.91644305,182.61,182.6,45.38]
[1753341197433,8.59644305,182.61,182.6,45.38]
[1753341197849,14.07259441,182.61,182.58,0.06]
[1753341198060,7.91644305,182.59,182.58,0.06]
[1753341198538,8.59644305,182.59,182.58,0.06]
[1753341198738,5.47615136,182.61,182.58,0.06]
[1753341199055,7.91644305,182.59,182.58,0.06]
[1753341199251,8.59644305,182.61,182.58,0.06]
[1753341199632,7.91644305,182.61,182.58,0.06]
[1753341199832,7.91644305,182.63,182.58,0.78]
[1753341200141,7.91644305,182.63,182.58,0.06]
[1753341200534,0.68,182.62,182.59,45.38]
[1753341200832,8.59644305,182.65,182.59,53.29644305]
[1753341201027,1.6345,182.68,182.64,7.91644305]
[1753341201253,1.6345,182.68,182.65,45.38]
[1753341201443,6.6575,182.69,182.65,53.29644305]
[1753341201648,6.15288278,182.72,182.67,7.91644305]
[1753341202164,14.06932583,182.72,182.65,51.57472321]
[1753341202341,14.06932583,182.72,182.66,7.91644305]
[1753341202847,7.91644305,182.67,182.62,45.38]
[1753341203046,7.91644305,182.63,182.61,45.38]
[1753341203246,0.68,182.66,182.55,0.06]
[1753341203247,7.91644305,182.62,182.57,7.91644305]
[1753341203459,7.91644305,182.64,182.59,45.38]
[1753341203652,7.91644305,182.67,182.62,7.91644305]
[1753341203864,7.91644305,182.68,182.62,8.63644305]
[1753341204037,13.38959722,182.71,182.65,7.91644305]
[1753341204236,6.15290287,182.72,182.68,7.91644305]
[1753341204455,7.91644305,182.73,182.67,7.91644305]
[1753341204659,1.6849,182.74,182.69,7.91644305]
[1753341204959,0.03,182.74,182.72,7.91644305]
[1753341205144,0.03,182.74,182.73,45.36]
[1753341205548,0.03,182.74,182.73,58.74899818]
[1753341206241,0.03,182.74,182.73,53.27644305]
[1753341206443,7.94644305,182.74,182.73,45.36]
[1753341206660,8.62644305,182.74,182.73,45.36]
[1753341206841,8.62644305,182.74,182.68,7.91644305]
[1753341207047,8.62644305,182.74,182.69,45.36]
[1753341207358,0.71,182.74,182.69,53.27644305]
[1753341207537,8.62644305,182.74,182.69,45.36]
[1753341207739,13.41889405,182.74,182.7,45.36]
[1753341207945,13.41889405,182.74,182.62,31.02160749]
[1753341207946,0.68,182.73,182.63,0.72]
[1753341208156,7.91644305,182.72,182.66,7.91644305]
[1753341208366,5.502451,182.74,182.68,7.91644305]
[1753341208662,5.502451,182.74,182.69,45.36]
[1753341208863,7.91644305,182.72,182.69,45.36]
[1753341209064,7.91644305,182.7,182.64,8.63644305]
[1753341209362,7.91644305,182.67,182.62,7.91644305]
[1753341209659,7.91644305,182.67,182.63,45.34]
[1753341209863,7.91644305,182.68,182.64,0.72]
[1753341210547,7.91644305,182.68,182.65,45.34]
[1753341210950,0.03,182.82,182.68,16.52]
[1753341211150,0.03,182.82,182.74,26.0]
[1753341211369,0.03,182.82,182.8,7.91644305]
[1753341211672,0.03,182.82,182.81,45.58]
[1753341211854,0.03,182.82,182.76,0.72]
[1753341212050,0.03,182.82,182.69,16.86141463]
[1753341212051,7.91644305,182.81,182.73,2.67927284]
[1753341212274,7.91644305,182.79,182.74,45.58]
[1753341212478,7.91644305,182.79,182.73,0.72]
[1753341212774,6.17988581,182.82,182.73,0.72]
[1753341212775,7.91644305,182.8,182.75,45.6]
[1753341212957,7.91644305,182.81,182.75,53.51644305]
[1753341213153,11.93179088,182.81,182.75,57.53179088]
[1753341213354,11.93179088,182.81,182.7,5.47321915]
[1753341213355,11.93179088,182.79,182.7,5.47321915]
[1753341213573,11.93179088,182.79,182.72,11.93179088]
[1753341214072,11.93179088,182.79,182.72,57.45179088]
[1753341214454,17.40266345,182.79,182.72,57.45179088]
[1753341215147,0.68,182.78,182.68,12.65179088]
[1753341215352,0.03,182.72,182.69,57.37179088]
[1753341215676,0.03,182.72,182.71,11.93179088]
[1753341216055,0.03,182.72,182.71,12.65179088]
[1753341216578,0.03,182.72,182.71,11.93179088]
[1753341217357,0.03,182.72,182.7,11.93179088]
[1753341217767,0.68,182.71,182.62,0.72]
[1753341217973,0.68,182.71,182.64,11.93179088]
[1753341218273,12.61179088,182.71,182.65,11.93179088]
[1753341218578,5.47345374,182.7,182.65,11.93179088]
[1753341218878,0.03,182.72,182.69,11.93179088]
[1753341219458,0.03,182.72,182.68,57.27179088]
[1753341219859,5.50286042,182.72,182.68,57.27179088]
[1753341220577,5.50286042,182.72,182.6,3.24971377]
[1753341220578,11.93179088,182.69,182.6,11.93179088]
[1753341220879,11.93179088,182.69,182.54,0.06]
[1753341220880,11.93179088,182.62,182.58,45.4]
[1753341221183,12.61179088,182.62,182.58,0.06]
[1753341221555,0.68,182.62,182.58,0.06]
[1753341221759,6.15599193,182.62,182.58,0.06]
[1753341222169,18.08778281,182.62,182.58,0.06]
[1753341222383,12.61179088,182.61,182.58,0.06]
[1753341222677,0.68,182.61,182.58,0.06]
[1753341222880,0.68,182.6,182.58,0.06]
[1753341223176,11.93179088,182.59,182.58,0.06]
[1753341223354,12.60179088,182.59,182.58,0.06]
[1753341223761,5.47705115,182.58,182.55,0.06]
[1753341224083,11.93179088,182.56,182.55,0.06]
[1753341224582,12.60179088,182.56,182.55,0.06]
[1753341225864,18.07944206,182.56,182.54,0.06]
[1753341226096,12.60179088,182.55,182.52,0.06]
[1753341226297,11.93179088,182.53,182.52,0.06]
[1753341226793,12.60179088,182.53,182.52,0.06]
[1753341227484,0.67,182.53,182.5,1.06]
[1753341227794,17.4109427,182.51,182.5,1.06]
[1753341228202,6.14915182,182.51,182.5,1.06]
[1753341228402,18.0809427,182.51,182.5,1.06]
[1753341233302,6.1953,182.5,182.44,0.2]
[1753341233476,11.93179088,182.45,182.44,0.2]
[1753341233902,11.93179088,182.46,182.44,0.2]
[1753341234067,0.03,182.64,182.45,13.88949088]
[1753341234273,0.03,182.64,182.52,11.93179088]
[1753341234489,0.7,182.64,182.59,11.93179088]
[1753341234692,0.67,182.63,182.57,11.93179088]
[1753341235281,5.47585149,182.62,182.57,11.93179088]
[1753341235592,5.47585149,182.62,182.59,11.93179088]
[1753341235767,1.5437,182.64,182.61,11.93179088]
[1753341235971,0.03,182.64,182.63,11.93179088]
[1753341236172,0.03,182.64,182.54,62.6725091]
[1753341236472,0.03,182.64,182.63,11.93179088]
[1753341237868,0.03,182.64,182.62,11.93179088]
[1753341238391,0.03,182.64,182.58,0.71]
[1753341238570,0.03,182.64,182.61,11.93179088]
[1753341239773,0.03,182.64,182.59,11.93179088]
[1753341239992,0.7,182.64,182.57,0.71]
[1753341240295,6.8653,182.63,182.45,11.2477]
[1753341240482,11.93179088,182.62,182.57,11.93179088]
[1753341240791,6.8653,182.63,182.58,11.93179088]
[1753341240980,6.1953,182.63,182.59,11.93179088]
[1753341241180,5.47585149,182.62,182.59,11.93179088]
[1753341241380,11.67085591,182.63,182.59,11.93179088]
[1753341241597,6.1953,182.63,182.62,11.93179088]
[1753341241781,6.1953,182.63,182.61,11.93179088]
[1753341242099,12.34091587,182.63,182.59,11.93179088]
[1753341242507,11.67091587,182.63,182.56,0.71]
[1753341242793,6.1953,182.63,182.6,11.93179088]
[1753341242970,6.1953,182.63,182.59,11.93179088]
[1753341243580,6.1953,182.63,182.56,6.18755178]
[1753341243781,0.03,182.64,182.62,11.93179088]
[1753341243972,0.03,182.64,182.57,18.04241908]
[1753341244173,0.03,182.64,182.63,11.93179088]
[1753341244590,0.03,182.64,182.63,12.64179088]
[1753341246301,0.03,182.64,182.63,11.93179088]
[1753341246682,0.03,182.64,181.62,96.81085134]
[1753341246683,0.03,182.64,182.57,0.71]
[1753341246977,11.96179088,182.64,182.59,11.93179088]
[1753341247183,0.7,182.64,182.59,11.93179088]
[1753341247491,0.03,182.64,182.61,11.93179088]
[1753341247885,0.03,182.64,182.61,12.64179088]
[1753341248197,12.63179088,182.64,182.59,11.93179088]
[1753341248403,0.7,182.64,182.59,11.93179088]
[1753341248588,12.60179088,182.63,182.53,45.3]
[1753341248787,0.67,182.63,182.56,11.93179088]
[1753341248990,11.93179088,182.62,182.57,11.93179088]
[1753341249189,0.67,182.63,182.57,11.93179088]
[1753341249190,12.60179088,182.63,182.57,11.93179088]
[1753341249502,5.47645125,182.6,182.55,11.93179088]
[1753341249883,5.47645125,182.6,182.56,11.93179088]
[1753341250294,5.47645125,182.6,182.51,0.71]
[1753341250295,31.09937027,182.6,182.51,0.71]
[1753341250498,11.93179088,182.58,182.52,11.93179088]
[1753341250700,14.24419088,182.59,182.53,11.93179088]
[1753341251095,1.6424,182.59,182.55,11.93179088]
[1753341251294,2.3124,182.59,182.54,11.93179088]
[1753341251495,5.47705115,182.58,182.54,11.93179088]
[1753341251882,7.11919412,182.59,182.55,11.93179088]
[1753341252085,1.6424,182.59,182.55,11.93179088]
[1753341252506,1.6424,182.59,182.52,6.24878662]
[1753341252687,1.6424,182.59,182.54,11.93179088]
[1753341253003,7.11924357,182.59,182.55,11.93179088]
[1753341253304,7.11924357,182.59,182.54,7.92543114]
[1753341253305,15.04467471,182.59,182.54,7.92543114]
[1753341253611,1.6424,182.59,182.56,7.92543114]
[1753341254301,1.6424,182.59,182.57,7.92543114]
[1753341254502,45.31,182.64,182.58,7.92543114]
[1753341254704,0.03,182.64,182.62,7.92543114]
[1753341255204,0.03,182.64,182.63,7.92543114]
[1753341256298,0.03,182.64,182.57,1.26773511]
[1753341256488,0.03,182.64,182.61,7.92543114]
[1753341256689,0.03,182.64,182.62,7.92543114]
[1753341256917,7.95543114,182.64,182.59,7.92543114]
[1753341257090,0.72,182.63,182.59,7.92543114]
[1753341257409,6.19576558,182.63,182.58,11.95371965]
[1753341257616,5.50530286,182.64,182.61,11.95371965]
[1753341257804,5.50530286,182.64,182.59,12.67371965]
[1753341257994,12.67371965,182.63,182.54,5.47825134]
[1753341258200,0.72,182.63,182.54,5.47825134]
[1753341258386,11.95371965,182.61,182.55,11.95371965]
[1753341258787,17.45902251,182.64,182.58,11.95371965]
[1753341259003,5.50530286,182.64,182.59,11.95371965]
[1753341259214,0.03,182.64,182.63,17.42927131]
[1753341259390,0.03,182.64,182.63,12.67371965]
[1753341259595,0.03,182.64,182.63,18.14927131]
[1753341260905,0.03,182.64,182.63,34.93395528]
[1753341261107,0.03,182.64,182.63,18.69682647]
[1753341261612,0.03,182.64,182.6,30.47540283]
[1753341261613,0.03,182.64,182.6,26.72]
[1753341261800,0.03,182.64,182.63,12.67371965]
[1753341263106,0.03,182.64,182.63,57.89371965]
[1753341263416,0.03,182.64,182.63,63.36927131]
[1753341264707,0.03,182.64,182.63,51.41555166]
[1753341265017,0.03,182.64,182.63,63.36927131]
[1753341266617,0.03,182.64,182.63,62.64927131]
[1753341267002,0.03,182.64,182.63,80.15395528]
[1753341267322,0.03,182.68,182.67,11.95371965]
[1753341267538,0.03,182.68,182.66,11.95371965]
[1753341267830,0.03,182.68,182.67,45.2]
[1753341268818,0.03,182.68,182.66,11.95371965]